fUSD/lending_fUSD_20240101
["ID","MTS","AMOUNT","RATE_DAILY","PERIOD"]
[309753638,1704081041524,-500.0,0.00035616,2]
[309753639,1704081041533,-500.0,0.00035616,2]
[309753640,1704081041543,-514.8259075,0.00035616,2]
[309753641,1704081041553,-500.0,0.00035616,2]
[309753642,1704081041562,-500.0,0.00035616,2]
[309753643,1704081041572,-500.0,0.00035616,2]
[309753644,1704081041581,-500.0,0.00035616,2]
[309753645,1704081041591,-609.84,0.00035616,2]
[309753646,1704081041601,-500.0,0.00035616,2]
[309753647,1704081041611,-500.0,0.00035616,2]
[309753648,1704081041620,-500.0,0.00035616,2]
[309753649,1704081041635,-370.85866271,0.00035616,2]
[309753650,1704081041645,-500.0,0.00035616,2]
[309753651,1704081041654,-500.0,0.00035616,2]
[309753652,1704081041664,-500.0,0.00035616,2]
[309753653,1704081041673,-500.0,0.00035616,2]
[309753654,1704081041682,-500.0,0.00035616,2]
[309753655,1704081041692,-608.49329802,0.00035616,2]
[309753656,1704081041701,-515.11,0.00035616,2]
[309753657,1704081041711,-481.25942272,0.00035616,2]
[309753658,1704081041720,-500.0,0.00035616,2]
[309753659,1704081041730,-500.0,0.00035616,2]
[309753660,1704081041738,-500.0,0.00035616,2]
[309753661,1704081041747,-167.1665759,0.00035616,2]
[309753662,1704081041757,-500.0,0.00035616,2]
[309753663,1704081041766,-500.0,0.00035616,2]
[309753664,1704081041776,-500.0,0.00035616,2]
[309753665,1704081041785,-500.0,0.00035616,2]
[309753666,1704081041794,-500.0,0.00035616,2]
[309753667,1704081041803,-519.67188524,0.00035616,2]
[309753668,1704081041813,-500.0,0.00035616,2]
[309753669,1704081041822,-500.0,0.00035616,2]
[309753670,1704081041831,-500.0,0.00035616,2]
[309753671,1704081041840,-500.0,0.00035616,2]
[309753672,1704081041850,-511.03270868,0.00035616,2]
[309753673,1704081041860,-524.34425284,0.00035616,2]
[309753674,1704081041869,-641.01559974,0.00035616,2]
[309753675,1704081041878,-500.0,0.00035616,2]
[309753676,1704081041888,-503.24722858,0.00035616,2]
[309753677,1704081041898,-500.0,0.00035616,2]
[309753678,1704081041908,-2076.36,0.00035616,2]
[309753679,1704081041917,-584.94899058,0.00035616,2]
[309753680,1704081041926,-526.3011699,0.00035616,2]
[309753681,1704081041936,-500.0,0.00035616,2]
[309753682,1704081041945,-500.0,0.00035616,2]
[309753683,1704081041954,-324.59239548,0.00035616,2]
[309753684,1704081041964,-500.0,0.00035616,2]
[309753685,1704081041973,-500.0,0.00035616,2]
[309753686,1704081041983,-500.0,0.00035616,2]
[309753687,1704081041992,-184.80809756,0.00035616,2]
[309753688,1704081042002,-551.10640535,0.00035616,2]
[309753689,1704081042011,-490.12952028,0.00035616,2]
[309753690,1704081042021,-500.0,0.00035616,2]
[309753691,1704081042030,-875.2,0.00035616,2]
[309753692,1704081042039,-500.0,0.00035616,2]
[309753693,1704081042049,-500.0,0.00035616,2]
[309753694,1704081042059,-500.0,0.00035616,2]
[309753695,1704081042068,-547.98340048,0.00035616,2]
[309753696,1704081042078,-500.0,0.00035616,2]
[309753697,1704081042088,-500.0,0.00035616,2]
[309753698,1704081042098,-500.0,0.00035616,2]
[309753699,1704081042108,-632.04916336,0.00035616,2]
[309753700,1704081042117,-500.0,0.00035616,2]
[309753701,1704081042127,-500.0,0.00035616,2]
[309753702,1704081042136,-500.0,0.00035616,2]
[309753703,1704081042146,-659.01,0.00035616,2]
[309753704,1704081042155,-527.00028187,0.00035616,2]
[309753705,1704081042166,-500.0,0.00035616,2]
[309753706,1704081042175,-511.92904395,0.00035616,2]
[309753707,1704081042184,-11454.7,0.00035616,5]
[309753708,1704081042194,-643.42,0.00035616,2]
[309753709,1704081042205,-518.5341713,0.00035616,2]
[309753710,1704081042214,-188.50098239,0.00035616,2]
[309753711,1704081042224,-380.40057767,0.00035616,2]
[309753712,1704081042233,-492.83112082,0.00035616,2]
[309753713,1704081042243,-500.0,0.00035616,2]
[309753714,1704081042253,-540.72292353,0.00035616,2]
[309753715,1704081042264,-500.0,0.00035616,2]
[309753716,1704081042273,-500.0,0.00035616,2]
[309753717,1704081042282,-500.0,0.00035616,2]
[309753718,1704081042291,-500.0,0.00035616,2]
[309753719,1704081042300,-500.0,0.00035616,2]
[309753720,1704081042309,-500.0,0.00035616,2]
[309753721,1704081042319,-500.0,0.00035616,2]
[309753722,1704081042328,-500.0,0.00035616,2]
[309753723,1704081042337,-757.19,0.00035616,2]
[309753724,1704081042347,-500.0,0.00035616,2]
[309753725,1704081042357,-549.63,0.00035616,2]
[309753726,1704081042367,-500.0,0.00035616,2]
[309753727,1704081042378,-500.0,0.00035616,2]
[309753728,1704081042388,-500.0,0.00035616,2]
[309753729,1704081042399,-500.0,0.00035616,2]
[309753730,1704081042408,-508.7,0.00035616,2]
[309753731,1704081042419,-522.7943762,0.00035616,2]
[309753732,1704081042428,-533.21589594,0.00035616,2]
[309753733,1704081042441,-519.19,0.00035616,2]
[309753734,1704081042451,-500.0,0.00035616,2]
[309753735,1704081042462,-507.33884803,0.00035616,2]
[309753736,1704081042471,-555.79,0.00035616,2]
[309753737,1704081042482,-500.0,0.00035616,2]
[309753738,1704081042492,-500.0,0.00035616,2]
[309753739,1704081042502,-500.0,0.00035616,2]
[309753740,1704081042511,-500.0,0.00035616,2]
[309753741,1704081042520,-500.0,0.00035616,2]
[309753742,1704081042529,-500.0,0.00035616,2]
[309753743,1704081042539,-10452.74,0.00035616,30]
[309753744,1704081042550,-500.0,0.00035616,2]
[309753745,1704081042559,-500.0,0.00035616,2]
[309753746,1704081042570,-500.0,0.00035616,2]
[309753747,1704081042581,-500.0,0.00035616,2]
[309753748,1704081042591,-512.92519503,0.00035616,2]
[309753749,1704081042602,-506.187731,0.00035616,2]
[309753750,1704081042612,-500.0,0.00035616,2]
[309753751,1704081042621,-860.36,0.00035616,2]
[309753752,1704081042632,-500.0,0.00035616,2]
[309753753,1704081042642,-500.0,0.00035616,2]
[309753754,1704081042651,-506.39658673,0.00035616,2]
[309753755,1704081042661,-500.0,0.00035616,2]
[309753756,1704081042670,-500.0,0.00035616,2]
[309753757,1704081042679,-500.0,0.00035616,2]
[309753758,1704081042688,-500.0,0.00035616,2]
[309753759,1704081042698,-797.37,0.00035616,2]
[309753760,1704081042707,-500.0,0.00035616,2]
[309753761,1704081042716,-500.0,0.00035616,2]
[309753762,1704081042725,-585.2,0.00035616,2]
[309753763,1704081042734,-556.24397573,0.00035616,2]
[309753765,1704081042744,-500.0,0.00035616,2]
[309753766,1704081042897,-320.06191911,0.00035616,2]
[309753767,1704081042906,-500.0,0.00035616,2]
[309753768,1704081042916,-500.0,0.00035616,2]
[309753769,1704081042926,-500.0,0.00035616,2]
[309753770,1704081042936,-500.0,0.00035616,2]
[309753771,1704081042945,-500.0,0.00035616,2]
[309753772,1704081042955,-500.0,0.00035616,2]
[309753773,1704081042965,-500.0,0.00035616,2]
[309753774,1704081042974,-500.0,0.00035616,2]
[309753775,1704081042983,-500.0,0.00035616,2]
[309753776,1704081042993,-500.0,0.00035616,2]
[309753777,1704081043003,-500.0,0.00035616,2]
[309753778,1704081043012,-1328.77,0.00035616,2]
[309753779,1704081043022,-500.0,0.00035616,2]
[309753780,1704081043032,-500.0,0.00035616,2]
[309753781,1704081043041,-500.0,0.00035616,2]
[309753782,1704081043050,-500.0,0.00035616,2]
[309753783,1704081043060,-524.3834951,0.00035616,2]
[309753784,1704081043070,-500.0,0.00035616,2]
[309753785,1704081043079,-500.0,0.00035616,2]
[309753786,1704081043089,-500.0,0.00035616,2]
[309753787,1704081043098,-500.0,0.00035616,2]
[309753788,1704081043108,-778.73,0.00035616,2]
[309753789,1704081043118,-500.0,0.00035616,2]
[309753790,1704081043128,-522.34248628,0.00035616,2]
[309753791,1704081043137,-500.0,0.00035616,2]
[309753792,1704081043147,-500.0,0.00035616,2]
[309753793,1704081043156,-526.68584853,0.00035616,2]
[309753794,1704081043166,-500.0,0.00035616,2]
[309753795,1704081043176,-518.3457186,0.00035616,2]
[309753796,1704081043185,-500.0,0.00035616,2]
[309753797,1704081043195,-555.37996,0.00035616,2]
[309753798,1704081043204,-599.32067813,0.00035616,2]
[309753799,1704081043214,-534.78207259,0.00035616,2]
[309753800,1704081043223,-500.0,0.00035616,2]
[309753801,1704081043232,-500.0,0.00035616,2]
[309753802,1704081043242,-500.0,0.00035616,2]
[309753803,1704081043250,-500.0,0.00035616,2]
[309753804,1704081043259,-500.0,0.00035616,2]
[309753805,1704081043269,-500.0,0.00035616,2]
[309753806,1704081043278,-500.0,0.00035616,2]
[309753807,1704081043287,-533.63375283,0.00035616,2]
[309753808,1704081043296,-500.0,0.00035616,2]
[309753809,1704081043306,-500.0,0.00035616,2]
[309753810,1704081043315,-500.0,0.00035616,2]
[309753811,1704081043324,-502.73,0.00035616,2]
[309753812,1704081043333,-500.0,0.00035616,2]
[309753813,1704081043342,-525.51383392,0.00035616,2]
[309753814,1704081043353,-500.0,0.00035616,2]
[309753815,1704081043363,-500.0,0.00035616,2]
[309753816,1704081043373,-613.57969012,0.00035616,2]
[309753817,1704081043382,-588.25560643,0.00035616,2]
[309753818,1704081043391,-500.0,0.00035616,2]
[309753819,1704081043400,-500.0,0.00035616,2]
[309753820,1704081043409,-500.0,0.00035616,2]
[309753821,1704081043419,-500.0,0.00035616,2]
[309753822,1704081043428,-500.0,0.00035616,2]
[309753823,1704081043437,-163.45650356,0.00035616,2]
[309753824,1704081043446,-801.18,0.00035616,2]
[309753825,1704081043455,-500.0,0.00035616,2]
[309753826,1704081043465,-500.0,0.00035616,2]
[309753827,1704081043475,-500.0,0.00035616,2]
[309753829,1704081043484,-500.0,0.00035616,2]
[309753831,1704081043494,-500.0,0.00035616,2]
[309753833,1704081043503,-500.0,0.00035616,2]
[309753835,1704081043512,-561.5955731,0.00035616,2]
[309753837,1704081043522,-502.69,0.00035616,2]
[309753839,1704081043531,-1131.95,0.00035616,2]
[309753841,1704081043541,-500.0,0.00035616,2]
[309753843,1704081043550,-500.0,0.00035616,2]
[309753845,1704081043560,-596.54,0.00035616,2]
[309753847,1704081043570,-538.62,0.00035616,2]
[309753848,1704081043578,-232.50426203,0.00035616,2]
[309753849,1704081043587,-500.0,0.00035616,2]
[309753850,1704081043598,-500.0,0.00035616,2]
[309753851,1704081043607,-500.0,0.00035616,2]
[309753852,1704081043616,-575.86543565,0.00035616,2]
[309753853,1704081043626,-500.62,0.00035616,2]
[309753854,1704081043641,-500.0,0.00035616,2]
[309753855,1704081043652,-546.1696226,0.00035616,2]
[309753856,1704081043661,-500.0,0.00035616,2]
[309753857,1704081043671,-694.09,0.00035616,2]
[309753858,1704081043683,-531.32476559,0.00035616,2]
[309753859,1704081043692,-500.0,0.00035616,2]
[309753860,1704081043701,-500.0,0.00035616,2]
[309753861,1704081043711,-500.0,0.00035616,2]
[309753862,1704081043722,-500.0,0.00035616,2]
[309753863,1704081043732,-500.0,0.00035616,2]
[309753864,1704081043742,-500.0,0.00035616,2]
[309753865,1704081043751,-500.0,0.00035616,2]
[309753866,1704081043760,-500.0,0.00035616,24]
[309753867,1704081043770,-500.0,0.00035616,2]
[309753868,1704081043780,-597.0425074,0.00035616,2]
[309753869,1704081043790,-500.0,0.00035616,2]
[309753870,1704081043800,-509.18555778,0.00035616,2]
[309753871,1704081043810,-608.42,0.00035616,2]
[309753872,1704081043819,-500.0,0.00035616,2]
[309753873,1704081043829,-500.0,0.00035616,2]
[309753874,1704081043839,-577.95875421,0.00035616,2]
[309753875,1704081043848,-1000.24,0.00035616,2]
[309753876,1704081043860,-500.0,0.00035616,2]
[309753877,1704081043870,-150.96961696,0.00035616,2]
[309753878,1704081043879,-500.0,0.00035616,2]
[309753879,1704081043890,-558.1204257,0.00035616,2]
[309753880,1704081043899,-517.73224503,0.00035616,2]
[309753881,1704081043908,-641.48089647,0.00035616,2]
[309753882,1704081043918,-500.0,0.00035616,2]
[309753883,1704081043927,-500.0,0.00035616,2]
[309753884,1704081043936,-500.0,0.00035616,2]
[309753885,1704081043946,-500.0,0.00035616,2]
[309753886,1704081043956,-195.75904255,0.00035616,2]
[309753887,1704081043966,-500.0,0.00035616,2]
[309753888,1704081043977,-500.0,0.00035616,2]
[309753889,1704081043986,-179.83432023,0.00035616,2]
[309753890,1704081043997,-500.0,0.00035616,2]
[309753891,1704081044007,-500.0,0.00035616,2]
[309753892,1704081044016,-500.0,0.00035616,2]
[309753893,1704081044026,-500.0,0.00035616,2]
[309753894,1704081044036,-512.50419237,0.00035616,2]
[309753895,1704081044046,-233.79072713,0.00035616,2]
[309753896,1704081044055,-186.8613758,0.00035616,2]
[309753897,1704081044065,-500.0,0.00035616,2]
[309753898,1704081044074,-161.45630346,0.00035616,2]
[309753899,1704081044085,-500.0,0.00035616,2]
[309753900,1704081044095,-500.0,0.00035616,2]
[309753901,1704081044104,-500.0,0.00035616,2]
[309753902,1704081044114,-500.0,0.00035616,2]
[309753903,1704081044123,-532.85961036,0.00035616,2]
[309753904,1704081044132,-556.07514134,0.00035616,2]
[309753905,1704081044142,-500.0,0.00035616,2]
[309753906,1704081044151,-500.0,0.00035616,2]
[309753907,1704081044161,-500.0,0.00035616,2]
[309753908,1704081044175,-500.0,0.00035616,2]
[309753909,1704081044184,-500.0,0.00035616,2]
[309753910,1704081044193,-15814.11,0.00035616,5]
[309753911,1704081044203,-1840.1,0.00035616,2]
[309753912,1704081044213,-500.0,0.00035616,2]
[309753913,1704081044222,-2953.93,0.00035616,2]
[309753914,1704081044232,-567.78552192,0.00035616,2]
[309753915,1704081044242,-1258.08044635,0.00035616,2]
[309753916,1704081044251,-500.0,0.00035616,2]
[309753917,1704081044261,-500.0,0.00035616,2]
[309753918,1704081044271,-200.0,0.00035616,2]
[309753919,1704081044281,-500.0,0.00035616,2]
[309753920,1704081044295,-500.0,0.00035616,2]
[309753921,1704081044304,-500.0,0.00035616,2]
[309753922,1704081044314,-500.0,0.00035616,2]
[309753923,1704081044324,-500.0,0.00035616,2]
[309753924,1704081044334,-500.0,0.00035616,2]
[309753925,1704081044346,-500.0,0.00035616,2]
[309753926,1704081044358,-500.0,0.00035616,2]
[309753927,1704081044367,-376.2731614,0.00035616,2]
[309753928,1704081044377,-162.63997948,0.00035616,2]
[309753929,1704081044386,-500.0,0.00035616,2]
[309753930,1704081044395,-500.0,0.00035616,2]
[309753931,1704081044405,-500.0,0.00035616,2]
[309753932,1704081044415,-1382.77,0.00035616,2]
[309753933,1704081044424,-500.0,0.00035616,2]
[309753934,1704081044434,-500.0,0.00035616,2]
[309753935,1704081044443,-500.0,0.00035616,2]
[309753936,1704081044452,-500.0,0.00035616,2]
[309753937,1704081044462,-201.92319329,0.00035616,2]
[309753938,1704081044471,-500.0,0.00035616,2]
[309753939,1704081044481,-500.0,0.00035616,2]
[309753940,1704081044490,-521.80694885,0.00035616,2]
[309753941,1704081044499,-653.08,0.00035616,2]
[309753942,1704081044508,-523.31041953,0.00035616,2]
[309753943,1704081044518,-1000.0,0.00035616,7]
[309753944,1704081044527,-170.05041547,0.00035616,2]
[309753945,1704081044536,-500.0,0.00035616,2]
[309753946,1704081044545,-500.0,0.00035616,2]
[309753947,1704081044554,-500.91804641,0.00035616,2]
[309753948,1704081044563,-500.0,0.00035616,2]
[309753949,1704081044572,-500.0,0.00035616,2]
[309753950,1704081044582,-150.0,0.00035616,2]
[309753951,1704081044591,-271.24083128,0.00035617,2]
[309753952,1704081044602,-200.0,0.00035623,2]
[309753953,1704081044611,-162.13589043,0.00035624,2]
[309753954,1704081044620,-333.33333,0.00035698,2]
[309753955,1704081044630,-500.0,0.00035717,2]
[309753956,1704081044639,-159.08,0.00035772,2]
[309753957,1704081044648,-333.33333,0.00035798,4]
[309753958,1704081044658,-200.0,0.000358,13]
[309753959,1704081044669,-159.59,0.00035836,2]
[309753960,1704081044678,-500.0,0.00035889,2]
[309753961,1704081044687,-1000.0,0.0003589,2]
[309753962,1704081044696,-500.0,0.0003589,2]
[309753963,1704081044705,-500.0,0.0003589,2]
[309753964,1704081044715,-500.0,0.0003589,2]
[309753965,1704081044723,-480.52969505,0.0003589,2]
[309753966,1704081044733,-500.0,0.0003589,2]
[309753967,1704081044742,-500.0,0.0003589,2]
[309753968,1704081044752,-500.0,0.0003589,2]
[309753969,1704081044761,-500.0,0.0003589,2]
[309753970,1704081044773,-500.0,0.0003589,2]
[309753971,1704081044782,-595.04587456,0.0003589,2]
[309753972,1704081044791,-500.0,0.0003589,2]
[309753973,1704081044801,-456.69,0.0003589,2]
[309753974,1704081044811,-500.0,0.0003589,2]
[309753975,1704081044822,-578.90112213,0.0003589,2]
[309753976,1704081044831,-536.29002759,0.0003589,2]
[309753977,1704081044842,-500.0,0.0003589,2]
[309753978,1704081044852,-655.16,0.0003589,2]
[309753979,1704081044861,-230.84992197,0.0003589,2]
[309753980,1704081044870,-500.0,0.0003589,2]
[309753981,1704081044880,-535.01804802,0.0003589,2]
[309753982,1704081044891,-496.57440332,0.0003589,2]
[309753983,1704081044901,-514.94455965,0.0003589,2]
[309753984,1704081044911,-524.63326419,0.0003589,2]
[309753985,1704081044921,-516.18189686,0.0003589,2]
[309753986,1704081044931,-532.97905762,0.0003589,2]
[309753987,1704081044940,-500.0,0.0003589,2]
[309753988,1704081044950,-500.0,0.0003589,2]
[309753989,1704081044960,-567.74958992,0.0003589,2]
[309753990,1704081044970,-500.0,0.0003589,2]
[309753991,1704081044979,-597.87,0.0003589,2]
[309753992,1704081044989,-500.0,0.0003589,2]
[309753993,1704081044999,-500.0,0.0003589,2]
[309753994,1704081045008,-537.02237665,0.0003589,2]
[309753995,1704081045018,-500.0,0.0003589,2]
[309753996,1704081045027,-500.0,0.0003589,2]
[309753997,1704081045037,-500.0,0.0003589,2]
[309753998,1704081045047,-562.46,0.0003589,2]
[309753999,1704081045056,-537.92766146,0.0003589,2]
[309754000,1704081045067,-545.23031816,0.0003589,2]
[309754001,1704081045078,-151.35356458,0.0003589,2]
[309754002,1704081045088,-500.0,0.0003589,2]
[309754003,1704081045097,-622.39,0.0003589,2]
[309754004,1704081045110,-500.0,0.0003589,2]
[309754005,1704081045120,-500.0,0.0003589,2]
[309754006,1704081045129,-500.0,0.0003589,2]
[309754007,1704081045138,-514.86607164,0.0003589,2]
[309754008,1704081045148,-500.0,0.0003589,2]
[309754009,1704081045159,-500.0,0.0003589,2]
[309754010,1704081045168,-557.86754776,0.0003589,2]
[309754011,1704081045179,-560.17,0.0003589,2]
[309754012,1704081045189,-500.0,0.0003589,2]
[309754013,1704081045199,-500.0,0.0003589,2]
[309754014,1704081045208,-239.14061024,0.0003589,2]
[309754015,1704081045218,-500.0,0.0003589,2]
[309754016,1704081045227,-500.0,0.0003589,2]
[309754017,1704081045237,-543.2312831,0.0003589,2]
[309754018,1704081045284,-500.0,0.0003589,2]
[309754019,1704081045294,-612.13417653,0.0003589,2]
[309754020,1704081045303,-500.0,0.0003589,2]
[309754021,1704081045312,-500.0,0.0003589,2]
[309754022,1704081045322,-590.32363325,0.0003589,2]
[309754023,1704081045331,-511.32672311,0.0003589,2]
[309754024,1704081045340,-500.0,0.0003589,2]
[309754025,1704081045352,-795.94,0.0003589,2]
[309754026,1704081045362,-500.0,0.0003589,2]
[309754027,1704081045372,-500.0,0.0003589,2]
[309754028,1704081045381,-534.29,0.0003589,2]
[309754029,1704081045391,-419.72257178,0.0003589,2]
[309754030,1704081045400,-500.0,0.0003589,2]
[309754031,1704081045409,-529.64574605,0.0003589,2]
[309754032,1704081045418,-500.0,0.0003589,2]
[309754033,1704081045427,-500.0,0.0003589,2]
[309754034,1704081045436,-526.40927186,0.0003589,7]
[309754035,1704081045445,-632.96366329,0.0003589,2]
[309754036,1704081045454,-500.0,0.0003589,2]
[309754037,1704081045464,-551.5,0.0003589,2]
[309754038,1704081045473,-500.0,0.0003589,2]
[309754039,1704081045482,-638.46599936,0.0003589,2]
[309754040,1704081045491,-500.0,0.0003589,2]
[309754041,1704081045500,-500.0,0.0003589,2]
[309754042,1704081045509,-483.31989325,0.0003589,2]
[309754043,1704081045518,-503.45773603,0.0003589,2]
[309754044,1704081045527,-500.0,0.0003589,2]
[309754045,1704081045536,-500.0,0.0003589,2]
[309754046,1704081045545,-500.0,0.0003589,2]
[309754047,1704081045554,-500.0,0.0003589,2]
[309754048,1704081045563,-500.0,0.0003589,2]
[309754049,1704081045572,-562.95165969,0.0003589,2]
[309754050,1704081045581,-500.0,0.0003589,2]
[309754051,1704081045590,-500.0,0.0003589,2]
[309754052,1704081045601,-546.17884206,0.0003589,2]
[309754053,1704081045611,-585.55128633,0.0003589,2]
[309754054,1704081045623,-500.0,0.0003589,2]
[309754055,1704081045634,-500.0,0.0003589,2]
[309754056,1704081045644,-500.0,0.0003589,2]
[309754057,1704081045653,-150.0,0.0003589,2]
[309754058,1704081045663,-259.89262497,0.0003589,2]
[309754059,1704081045674,-551.70076853,0.0003589,2]
[309754060,1704081045684,-500.0,0.0003589,2]
[309754061,1704081045693,-500.0,0.0003589,2]
[309754062,1704081045702,-582.4,0.0003589,2]
[309754063,1704081045713,-500.0,0.0003589,2]
[309754064,1704081045723,-500.0,0.0003589,2]
[309754065,1704081045732,-605.44532662,0.0003589,2]
[309754066,1704081045741,-151.97671061,0.0003589,2]
[309754067,1704081045751,-544.22148994,0.0003589,2]
[309754068,1704081045762,-964.83,0.0003589,2]
[309754069,1704081045773,-534.15,0.0003589,2]
[309754070,1704081045783,-500.0,0.0003589,2]
[309754071,1704081045792,-500.0,0.0003589,2]
[309754072,1704081045801,-507.95,0.0003589,2]
[309754073,1704081045813,-500.0,0.0003589,2]
[309754074,1704081045823,-530.82140663,0.0003589,2]
[309754075,1704081045833,-514.7293438,0.0003589,2]
[309754077,1704081045843,-547.61017622,0.0003589,2]
[309754078,1704081045854,-500.0,0.0003589,2]
[309754079,1704081045863,-500.0,0.0003589,2]
[309754080,1704081045872,-500.0,0.0003589,2]
[309754081,1704081045885,-500.0,0.0003589,2]
[309754082,1704081045894,-591.28552256,0.0003589,2]
[309754083,1704081045903,-500.0,0.0003589,2]
[309754084,1704081045913,-500.0,0.0003589,2]
[309754085,1704081045922,-511.54418939,0.0003589,2]
[309754086,1704081045932,-500.0,0.0003589,2]
[309754088,1704081045941,-500.0,0.0003589,2]
[309754089,1704081045951,-515.58135054,0.0003589,2]
[309754091,1704081045960,-265.31893999,0.0003589,2]
[309754093,1704081045970,-516.32293902,0.0003589,2]
[309754095,1704081045979,-537.97,0.0003589,2]
[309754097,1704081045989,-500.0,0.0003589,2]
[309754099,1704081045999,-555.78303856,0.0003589,2]
[309754101,1704081046009,-500.0,0.0003589,2]
[309754103,1704081046018,-500.0,0.0003589,2]
[309754105,1704081046028,-459.9815533,0.0003589,2]
[309754107,1704081046037,-628.66783491,0.0003589,2]
[309754109,1704081046048,-523.8757155,0.0003589,2]
[309754111,1704081046057,-560.63868788,0.0003589,2]
[309754113,1704081046067,-609.84,0.0003589,2]
[309754114,1704081046076,-500.0,0.0003589,2]
[309754115,1704081046086,-500.0,0.0003589,2]
[309754116,1704081046095,-500.0,0.0003589,2]
[309754117,1704081046105,-588.79133438,0.0003589,2]
[309754118,1704081046114,-524.33531182,0.0003589,2]
[309754119,1704081046124,-500.0,0.0003589,2]
[309754120,1704081046133,-500.0,0.0003589,2]
[309754121,1704081046144,-515.11,0.0003589,2]
[309754122,1704081046153,-500.0,0.0003589,2]
[309754123,1704081046163,-200.96408792,0.0003589,2]
[309754124,1704081046173,-500.0,0.0003589,2]
[309754125,1704081046183,-500.0,0.0003589,2]
[309754126,1704081046193,-500.0,0.0003589,2]
[309754127,1704081046202,-164.25124087,0.0003589,2]
[309754128,1704081046212,-500.0,0.0003589,2]
[309754129,1704081046222,-500.0,0.0003589,2]
[309754130,1704081046231,-500.0,0.0003589,2]
[309754131,1704081046241,-500.0,0.0003589,2]
[309754132,1704081046250,-500.0,0.0003589,2]
[309754133,1704081046260,-500.0,0.0003589,2]
[309754134,1704081046269,-500.0,0.0003589,2]
[309754135,1704081046279,-2076.36,0.0003589,2]
[309754136,1704081046288,-500.0,0.0003589,2]
[309754137,1704081046297,-500.0,0.0003589,2]
[309754138,1704081046306,-500.0,0.0003589,2]
[309754139,1704081046315,-500.0,0.0003589,2]
[309754140,1704081046324,-500.0,0.0003589,2]
[309754141,1704081046337,-500.0,0.0003589,2]
[309754142,1704081046347,-875.2,0.0003589,2]
[309754143,1704081046359,-422.12756053,0.0003589,2]
[309754144,1704081046368,-405.22598766,0.0003589,2]
[309754145,1704081046378,-500.0,0.0003589,2]
[309754146,1704081046387,-500.0,0.0003589,2]
[309754147,1704081046396,-500.0,0.0003589,2]
[309754148,1704081046407,-517.0039486,0.0003589,2]
[309754149,1704081046417,-500.0,0.0003589,2]
[309754150,1704081046426,-595.60646308,0.0003589,2]
[309754151,1704081046436,-500.0,0.0003589,2]
[309754152,1704081046447,-659.01,0.0003589,2]
[309754153,1704081046461,-481.77725516,0.0003589,2]
[309754154,1704081046470,-11454.7,0.0003589,5]
[309754155,1704081046479,-643.42,0.0003589,2]
[309754156,1704081046489,-500.0,0.0003589,2]
[309754157,1704081046498,-532.05412436,0.0003589,2]
[309754158,1704081046508,-537.8606439,0.0003589,2]
[309754159,1704081046517,-524.15346228,0.0003589,2]
[309754160,1704081046526,-500.0,0.0003589,2]
[309754161,1704081046536,-559.30806162,0.0003589,2]
[309754162,1704081046545,-500.0,0.0003589,2]